fUSD/lending_fUSD_20251211
["ID","MTS","AMOUNT","RATE_DAILY","PERIOD"]
[398254761,1765470645792,-1000.0,0.00016862,2]
[398254762,1765470645802,-1000.0,0.00016862,2]
[398254763,1765470645811,-1000.0,0.00016862,2]
[398254764,1765470645821,-1000.0,0.00016862,2]
[398254765,1765470645830,-500.0,0.00016862,2]
[398254766,1765470645839,-500.0,0.00016862,2]
[398254767,1765470645849,-500.0,0.00016862,2]
[398254769,1765470645859,-500.0,0.00016862,2]
[398254771,1765470645869,-500.0,0.00016862,2]
[398254772,1765470645879,-500.0,0.00016862,2]
[398254773,1765470645888,-500.0,0.00016862,2]
[398254774,1765470645898,-500.0,0.00016862,2]
[398254775,1765470645907,-500.0,0.00016862,2]
[398254776,1765470645917,-500.0,0.00016862,2]
[398254778,1765470645927,-500.0,0.00016862,2]
[398254780,1765470645937,-719.04747942,0.00016862,2]
[398254782,1765470645946,-300.0,0.00016862,2]
[398254784,1765470645956,-250.0,0.00016923,2]
[398254786,1765470645966,-250.0,0.00016923,2]
[398254788,1765470645975,-1000.0,0.00016958,2]
[398254790,1765470645984,-500.0,0.00016989,2]
[398254793,1765470645994,-17351.6654863,0.0001699,2]
[398254796,1765470646005,-42272.82024938,0.0001699,2]
[398254797,1765470646015,-2000.0,0.00017,2]
[398254799,1765470646024,-22589.88019142,0.00017,2]
[398254802,1765470646044,-11654.81829932,0.00017,2]
[398254805,1765470646055,-250.70486175,0.00017,2]
[398254844,1765470686639,898.25,0.00024665,120]
[398254867,1765470926296,166.66,0.00015043,2]
[398254874,1765470987712,5598.324997,0.00015282,2]
[398254883,1765471045326,696.85,0.00013699,2]
[398254896,1765471220733,500.0,0.00015278,3]
[398254909,1765471327650,9500.01,0.00015288,2]
[398254910,1765471327680,10000.01,0.00015288,2]
[398254911,1765471327705,10000.01,0.00015288,2]
[398254912,1765471327728,10000.01,0.00015288,2]
[398254913,1765471327753,2357.92,0.00015288,2]
[398254914,1765471387137,500.0,0.00015344,2]
[398254919,1765471406186,502.0,0.00015344,2]
[398254920,1765471413231,168.23,0.00015325,2]
[398254921,1765471416310,473.82004995,0.00015344,2]
[398254922,1765471502621,250.0,0.0001534,2]
[398254923,1765471551770,250.0,0.00015258,2]
[398254924,1765471675503,200.0,0.00014983,2]
[398254925,1765471705264,192.89,0.00015044,2]
[398254947,1765471831627,-150.0,0.00015353,2]
[398254948,1765471831638,-250.0,0.00015354,2]
[398254949,1765471831648,-195.0,0.00015354,2]
[398254950,1765471831658,-195.0,0.00015357,2]
[398254951,1765471831669,-66.87629328,0.0001536,2]
[398254952,1765471831682,-99.78370672,0.0001536,2]
[398254953,1765471831692,-917.8,0.00015366,2]
[398254954,1765471831703,-969.17,0.00015408,2]
[398254955,1765471831713,-999.0,0.00015513,3]
[398254956,1765471831723,-1862.46,0.00015575,2]
[398254957,1765471831738,-166.66,0.00015676,2]
[398254958,1765471831749,-300.0,0.00015698,2]
[398254959,1765471831759,-1200.0,0.00015698,2]
[398254960,1765471831771,-300.0,0.00015698,2]
[398254961,1765471831782,-984.0,0.00015699,2]
[398254962,1765471831791,-10562.02839564,0.000157,2]
[398254963,1765471831805,-30147.33960436,0.000157,2]
[398254964,1765471831815,-12466.63628489,0.000157,2]
[398254965,1765471831827,-433.69278607,0.000157,2]
[398254966,1765471831843,-2035.65362904,0.000157,2]
[398254967,1765471831853,-805.81,0.0001579,3]
[398254968,1765471831863,-300.0,0.00015798,2]
[398254970,1765471831873,-500.0,0.00015798,2]
[398254971,1765471831884,-500.0,0.00015798,2]
[398254972,1765471831894,-500.0,0.00015798,2]
[398254973,1765471831904,-500.0,0.00015798,2]
[398254974,1765471831914,-500.0,0.00015798,2]
[398254975,1765471831924,-500.0,0.00015798,2]
[398254976,1765471831934,-500.0,0.00015798,2]
[398254977,1765471831944,-500.0,0.00015798,2]
[398254978,1765471831955,-592.42667861,0.00015798,2]
[398254979,1765471831965,-500.0,0.00015798,2]
[398254980,1765471831975,-500.0,0.00015798,2]
[398254981,1765471831985,-500.0,0.00015798,2]
[398254982,1765471831995,-500.0,0.00015798,2]
[398254983,1765471832006,-500.0,0.00015798,2]
[398254984,1765471832018,-500.0,0.00015798,2]
[398254985,1765471832306,-499.99999999,0.00015798,2]
[398254986,1765471832317,-235.1,0.00015798,2]
[398254987,1765471832328,-500.0,0.00015799,2]
[398254988,1765471832338,-258.73685582,0.00015799,2]
[398254989,1765471832349,-218.55596114,0.00015799,2]
[398254990,1765471832359,-178.79679669,0.00015799,2]
[398254991,1765471832373,-425.99865193,0.0001587,2]
[398254992,1765471832394,-3869.28451956,0.0001587,2]
[398254993,1765471832404,-166.66,0.00015993,2]
[398254994,1765471832414,-1000.0,0.00015999,3]
[398254995,1765471832424,-235.1,0.00016072,2]
[398254996,1765471832434,-226.10786118,0.000161,2]
[398254997,1765471832445,-2406.27803049,0.000161,2]
[398254998,1765471832457,-3039.05450042,0.000161,2]
[398254999,1765471832468,-17379.89,0.00016158,2]
[398255000,1765471832478,-1000.0,0.00016199,3]
[398255001,1765471832488,-150.0,0.000162,2]
[398255002,1765471832498,-150.0,0.000162,2]
[398255003,1765471832508,-150.0,0.000162,2]
[398255004,1765471832518,-150.0,0.000162,2]
[398255005,1765471832529,-150.0,0.000162,2]
[398255006,1765471832539,-150.0,0.000162,2]
[398255007,1765471832552,-150.0,0.000162,2]
[398255008,1765471832563,-150.0,0.000162,2]
[398255009,1765471832573,-150.0,0.000162,2]
[398255010,1765471832583,-150.0,0.000162,2]
[398255011,1765471832595,-500.0,0.000162,2]
[398255012,1765471832605,-241.44148532,0.00016232,2]
[398255013,1765471832615,-5445.33253083,0.000163,2]
[398255014,1765471832627,-166.66,0.0001631,2]
[398255015,1765471832637,-150.0,0.00016312,2]
[398255016,1765471832646,-200.0,0.00016336,2]
[398255017,1765471832656,-235.1,0.00016346,2]
[398255018,1765471832666,-528.06502842,0.00016356,2]
[398255019,1765471832676,-500.0,0.00016356,2]
[398255020,1765471832686,-150.0,0.0001638,2]
[398255021,1765471832696,-168.23,0.00016419,2]
[398255022,1765471832707,-150.0,0.00016425,2]
[398255023,1765471832718,-150.0,0.00016425,2]
[398255024,1765471832732,-500.0,0.00016438,2]
[398255025,1765471832742,-500.0,0.00016438,2]
[398255026,1765471832752,-497.60074576,0.00016438,2]
[398255027,1765471832762,-898.25,0.00016443,2]
[398255028,1765471832773,-500.0,0.00016474,2]
[398255029,1765471832783,-452.42388811,0.0001648,2]
[398255030,1765471832795,-47.57611189,0.0001648,2]
[398255031,1765471832805,-313.69885804,0.0001648,2]
[398255033,1765471837620,-186.30114196,0.0001648,2]
[398255034,1765471837633,-5445.33253083,0.000165,2]
[398255035,1765471837643,-150.0,0.00016537,2]
[398255036,1765471837653,-150.0,0.0001656,2]
[398255037,1765471837664,-150.0,0.0001656,2]
[398255038,1765471837674,-150.0,0.0001656,2]
[398255039,1765471837684,-235.1,0.0001662,2]
[398255040,1765471837695,-166.66,0.00016626,2]
[398255041,1765471837704,-594.0,0.0001663,2]
[398255042,1765471837714,-150.0,0.0001665,2]
[398255043,1765471837724,-150.0,0.0001665,2]
[398255044,1765471837734,-4107.53956517,0.000167,2]
[398255045,1765471837746,-1337.79296566,0.000167,2]
[398255046,1765471837755,-150.0,0.0001674,2]
[398255047,1765471837764,-95.74306986,0.00016748,2]
[398255125,1765471839768,-404.25693014,0.00016748,2]
[398255127,1765471839778,-150.0,0.00016762,2]
[398255128,1765471839788,-150.0,0.000168,2]
[398255130,1765471839799,-151.0,0.00016801,2]
[398255131,1765471839809,-7309.9796,0.00016804,2]
[398255132,1765471839820,-975.81419377,0.00016804,2]
[398255133,1765471839831,-24.18580623,0.00016804,2]
[398255134,1765471839842,-1111.0,0.00016829,2]
[398255135,1765471839853,-63.48119327,0.00016829,2]
[398255136,1765471839984,-436.51880673,0.00016829,2]
[398255137,1765471839994,-151.0,0.00016829,2]
[398255138,1765471840004,-500.0,0.00016829,2]
[398255139,1765471840014,-622.24294831,0.00016829,2]
[398255140,1765471840025,-500.0,0.00016829,2]
[398255141,1765471840035,-500.0,0.00016829,2]
[398255142,1765471840102,-500.0,0.00016829,2]
[398255143,1765471840112,-417.73824496,0.00016829,2]
[398255144,1765471840124,-82.26175504,0.00016829,2]
[398255145,1765471840134,-416.09945892,0.00016829,2]
[398255146,1765471840145,-271.36866743,0.00016829,2]
[398255147,1765471840155,-1000.0,0.00016829,2]
[398255148,1765471840166,-1000.0,0.00016829,2]
[398255149,1765471840178,-800.91950008,0.00016829,2]
[398255150,1765471840188,-300.70127104,0.00016829,2]
[398255152,1765471840201,-300.0,0.00016829,2]
[398255154,1765471840212,-179.85,0.00016842,2]
[398255156,1765471840223,-221.56818859,0.00016846,2]
[398255158,1765471840233,-284.97170052,0.00016859,2]
[398255160,1765471840244,-45.88946638,0.00016875,2]
[398255161,1765471840257,-104.11053362,0.00016875,2]
[398255162,1765471840267,-150.0,0.00016875,2]
[398255164,1765471840279,-353.1630856,0.00016882,2]
[398255165,1765471840291,-245.4759199,0.00016882,2]
[398255166,1765471840304,-300.0,0.00016889,2]
[398255167,1765471840313,-195.0,0.00016889,2]
[398255168,1765471840323,-300.0,0.00016889,2]
[398255169,1765471840332,-195.0,0.00016889,2]
[398255170,1765471840341,-2500.0,0.00016889,2]
[398255171,1765471840351,-250.0,0.00016889,2]
[398255172,1765471840361,-379.77768272,0.00016889,2]
[398255173,1765471840370,-195.0,0.00016889,2]
[398255174,1765471840380,-300.0,0.00016889,2]
[398255175,1765471840389,-235.14,0.00016894,2]
[398255176,1765471840398,-5445.33253083,0.000169,2]
[398255177,1765471840407,-3790.0515335,0.00016904,2]
[398255178,1765471840417,-611.0,0.00016915,2]
[398255179,1765471840426,-1606.0,0.00016915,2]
[398255180,1765471840435,-1324.0,0.00016915,2]
[398255181,1765471840445,-3449.0,0.00016915,2]
[398255182,1765471840455,-684.0,0.00016915,2]
[398255183,1765471840464,-1260.0,0.00016915,2]
[398255184,1765471840474,-563.0,0.00016915,2]
[398255185,1765471840483,-150.0,0.00016915,2]
[398255186,1765471840493,-6518.0,0.00016915,2]
[398255187,1765471840503,-150.0,0.0001692,2]
[398255188,1765471840512,-150.0,0.0001692,2]
[398255189,1765471840521,-150.0,0.0001692,2]
[398255190,1765471840533,-510.0,0.0001692,2]
[398255191,1765471840542,-643.38,0.00016986,2]
[398255192,1765471840553,-150.0,0.00016987,2]
[398255193,1765471840563,-151.0,0.00016997,2]
[398255194,1765471840573,-1000.0,0.00016999,2]
[398255195,1765471840582,-13324.84233307,0.00017,2]
[398255196,1765471840594,-5192.7749056,0.00017,2]
[398255204,1765471842696,-253.0,0.00016915,2]
[398255205,1765471842706,-77.28996395,0.00017,2]
[398255206,1765471843060,-1518.1488,0.00017,2]
[398255212,1765471845565,-285.07211483,0.00017,2]
[398255213,1765471845670,-1200.0,0.00017,2]
[398255214,1765471845826,-132297.8965326,0.00017,2]
[398255215,1765471845837,-250.0,0.00017,2]
[398255216,1765471845846,-2000.0,0.00017,2]
[398255217,1765471845856,-500.0,0.00017022,2]
[398255218,1765471845866,-168.0,0.00017085,2]
[398255219,1765471845877,-150.0,0.000171,2]
[398255220,1765471845887,-150.0,0.000171,2]
[398255221,1765471845897,-150.0,0.000171,2]
[398255222,1765471845907,-150.0,0.000171,2]
[398255223,1765471845917,-5445.33253083,0.000171,2]
[398255224,1765471845927,-168.0,0.00017115,2]
[398255226,1765471845937,-420.0,0.00017168,2]
[398255227,1765471845947,-420.0,0.00017168,2]
[398255228,1765471845957,-2366.246,0.00017182,2]
[398255229,1765471845966,-172.697,0.00017182,2]
[398255230,1765471845975,-150.0,0.00017212,2]
[398255231,1765471845985,-1680.0,0.00017255,2]
[398255232,1765471845995,-163.649999,0.0001726,2]
[398255233,1765471846004,-150.0,0.0001728,2]
[398255234,1765471846014,-150.0,0.0001728,2]
[398255235,1765471846024,-150.0,0.0001728,2]
[398255236,1765471846035,-500.0,0.00017296,2]
[398255238,1765471846046,-5445.33253083,0.000173,2]
[398255240,1765471846055,-500.0,0.0001732,2]
[398255242,1765471846065,-500.0,0.0001732,2]
[398255243,1765471846075,-214.963,0.00017321,2]
[398255244,1765471846085,-210.671,0.00017321,2]
[398255245,1765471846095,-221.097,0.00017321,2]
[398255246,1765471846105,-193.419,0.00017321,2]
[398255247,1765471846115,-154.969,0.00017321,2]
[398255248,1765471846126,-190.023,0.00017321,2]
[398255249,1765471846137,-250.0,0.00017321,2]
[398255250,1765471846148,-250.0,0.00017321,2]
[398255251,1765471846159,-211.117,0.00017321,2]
[398255252,1765471846168,-164.0,0.00017321,2]
[398255253,1765471846179,-225.045,0.00017321,2]
[398255254,1765471846189,-150.0,0.00017325,2]
[398255255,1765471846200,-150.0,0.00017325,2]
[398255256,1765471846210,-1111.0,0.00017377,2]
[398255257,1765471846220,-150.0,0.000174,2]
[398255258,1765471846230,-150.0,0.00017437,2]
[398255259,1765471846241,-150.0,0.0001746,2]
[398255260,1765471846250,-5445.33253083,0.000175,2]
[398255261,1765471846261,-168.23,0.00017514,2]
[398255262,1765471846280,-164.5,0.00017534,2]
[398255263,1765471846297,-150.0,0.0001755,2]
[398255264,1765471846308,-150.0,0.0001755,2]
[398255265,1765471846319,-500.0,0.0001757,2]
[398255266,1765471846331,-1000.0,0.00017586,2]
[398255267,1765471846341,-150.0,0.0001764,2]
[398255268,1765471846352,-150.0,0.0001764,2]
[398255269,1765471846363,-150.0,0.0001764,2]
[398255270,1765471846374,-836.55377652,0.0001764,2]
[398255271,1765471846384,-150.0,0.00017662,2]
[398255272,1765471846395,-168.0,0.00017665,2]
[398255273,1765471846405,-500.0,0.00017699,2]
[398255274,1765471846415,-5445.33253083,0.000177,2]
[398255275,1765471846426,-150.0,0.00017775,2]
[398255276,1765471846437,-150.0,0.00017775,2]
[398255277,1765471846448,-2074.33758003,0.00017789,2]
[398255278,1765471846459,-150.0,0.0001782,2]
[398255279,1765471846468,-500.0,0.00017844,2]
[398255280,1765471846478,-200.0,0.00017856,2]
[398255281,1765471846488,-209.47559237,0.00017877,2]
[398255282,1765471846499,-2034.38732509,0.0001788,2]
[398255283,1765471846509,-150.0,0.00017887,2]
[398255284,1765471846519,-233.05803626,0.000179,2]
[398255285,1765471846530,-2074.33758003,0.000179,2]
[398255286,1765471846540,-502.99474704,0.000179,2]
[398255287,1765471846550,-5445.33253083,0.000179,2]
[398255288,1765471846562,-284.18035971,0.000179,2]
[398255289,1765471846573,-5000.0,0.000179,2]
[398255290,1765471846583,-10000.0,0.000179,2]
[398255291,1765471846595,-708.70866916,0.000179,2]
[398255292,1765471846604,-323.08631271,0.000179,2]
[398255293,1765471846614,-494.19685013,0.000179,2]
[398255294,1765471846625,-863.04628755,0.000179,2]
[398255295,1765471846640,-268.62970582,0.000179,3]
[398255296,1765471846650,-1000.0,0.00017918,2]
[398255297,1765471846660,-57334.05693503,0.0001792,2]
[398255302,1765471913429,500.0,0.00015253,2]
[398255305,1765472043262,-650.0,0.00015699,2]
[398255307,1765472462365,250.0,0.0001534,2]
[398255308,1765472586118,1640.64121402,0.00015286,2]
[398255374,1765472841581,151.83,8.084e-05,2]
[398255375,1765472841787,151.83,8.51e-05,2]
[398255376,1765472842122,151.83,8.935e-05,2]
[398255377,1765472842329,151.83,9.361e-05,2]
[398255378,1765472842533,151.83,9.786e-05,2]
[398255379,1765472843271,151.83,0.00010212,2]
[398255380,1765472843317,151.83,0.00010637,2]
[398255381,1765472843378,151.83,0.00011063,2]
[398255382,1765472843431,151.83,0.00011488,2]
[398255383,1765472843588,151.83,0.00011914,2]
[398255384,1765472843777,151.83,0.00012339,2]
[398255385,1765472843984,151.83,0.00012765,2]
[398255386,1765472844260,151.83,0.0001319,2]
[398255387,1765472844458,151.83,0.00013615,2]
[398255388,1765472844651,151.83,0.00014041,2]
[398255389,1765472844866,151.83,0.00014466,2]
[398255390,1765472845073,151.83,0.00014892,2]
[398255391,1765472845307,151.83,0.00015317,2]
[398255392,1765472895396,1093.76080936,0.00015286,2]
[398255404,1765473031680,-702.53762416,0.00015386,2]
[398255407,1765473031693,-388.29480477,0.00015386,2]
[398255412,1765473031733,-394.08958401,0.00015386,2]
[398255414,1765473031746,-408.07498706,0.00015386,2]
[398255415,1765473031756,-250.0,0.00015386,2]
[398255416,1765473031766,-192.14667052,0.00015386,2]
[398255417,1765473031775,-1093.76080934,0.00015465,2]
[398255418,1765473031787,-1200.0,0.00015597,2]
[398255419,1765473031801,-192.14667052,0.00015599,2]
[398255420,1765473031811,-550.0,0.00015599,2]
[398255421,1765473031822,-300.0,0.00015599,2]
[398255422,1765473031832,-1306.58222336,0.000156,2]
[398255423,1765473031842,-11472.7429,0.000156,2]
[398255424,1765473031853,-6610.5457392,0.000156,2]
[398255425,1765473031865,-4400.0939247,0.000156,2]
[398255426,1765473031877,-1472.73296337,0.000156,2]
[398255427,1765473031889,-500.0,0.000156,2]
[398255428,1765473031901,-600.11131002,0.000156,2]
[398255429,1765473031916,-7790.70026846,0.000156,2]
[398255430,1765473031928,-328.0184482,0.000156,2]
[398255431,1765473031940,-407.76266405,0.000156,2]
[398255432,1765473031952,-1898.90392692,0.000156,2]
[398255588,1765473037753,-13091.01807414,0.000156,2]
[398255589,1765473037765,-35686.64838094,0.000156,2]
[398255590,1765473037775,-1093.76080934,0.00015643,2]
[398255591,1765473037785,-300.0,0.00015698,2]
[398255592,1765473037795,-500.0,0.00015699,2]
[398255593,1765473037805,-500.0,0.00015699,2]
[398255594,1765473037815,-151.83,0.00015743,2]
[398255595,1765473037825,-1000.0,0.00015899,2]
[398255596,1765473037834,-2964.4798,0.00015899,2]
[398255597,1765473037844,-703.56,0.00016164,2]
[398255598,1765473037854,-151.83,0.00016168,2]
[398255599,1765473037863,-429.15,0.00016169,2]
[398255600,1765473037873,-150.0,0.000162,2]
[398255601,1765473037883,-150.0,0.000162,2]
[398255602,1765473037892,-150.0,0.000162,2]
[398255603,1765473037901,-150.0,0.000162,2]
[398255604,1765473037911,-150.0,0.000162,2]
[398255605,1765473037921,-150.0,0.000162,2]
[398255606,1765473037930,-150.0,0.000162,2]
[398255607,1765473037939,-150.0,0.000162,2]
[398255608,1765473037950,-150.0,0.000162,2]
[398255609,1765473037963,-150.0,0.000162,2]
[398255610,1765473037973,-150.0,0.000162,2]
[398255611,1765473037982,-488.97,0.00016222,2]
[398255612,1765473037992,-500.0,0.00016356,2]
[398255613,1765473038003,-151.0,0.00016376,2]
[398255614,1765473038013,-1282.74247859,0.00016379,2]
[398255616,1765473038030,-302.64238328,0.00016379,2]
[398255618,1765473038043,-5691.06513813,0.00016379,2]
[398255620,1765473038053,-1313.68,0.00016379,2]
[398255622,1765473038063,-155.95,0.00016379,2]
[398255624,1765473038073,-2253.66,0.00016379,2]
[398255626,1765473038083,-5313.79,0.00016432,2]
[398255628,1765473038093,-181.11579907,0.00016437,2]
[398255630,1765473038103,-475.15775768,0.00016437,2]
[398255632,1765473038113,-152.9891728,0.00016437,2]
[398255633,1765473038123,-7956.09,0.00016438,2]
[398255634,1765473038133,-500.0,0.00016438,2]
[398255635,1765473038143,-166.66,0.00016653,2]
[398255636,1765473038153,-150.0,0.00016653,2]
[398255637,1765473038163,-877.0,0.00016653,2]
[398255638,1765473038172,-150.0,0.00016653,2]
[398255640,1765473038182,-500.0,0.00016653,2]
[398255642,1765473038192,-500.0,0.00016712,2]
[398255644,1765473038202,-966.63644785,0.00016737,2]
[398255645,1765473038424,-272.36355215,0.00016737,2]
[398255646,1765473038435,-117.07252785,0.00016737,2]
[398255647,1765473038450,-182.92747215,0.00016737,2]
[398255648,1765473038460,-1260.0,0.00016741,2]
[398255649,1765473038470,-684.0,0.00016741,2]
[398255650,1765473038481,-910.0,0.00016741,2]
[398255651,1765473038491,-1254.078,0.00016741,2]
[398255652,1765473038502,-253.0,0.00016741,2]
[398255653,1765473038512,-563.0,0.00016741,2]
[398255654,1765473038523,-4764.0,0.00016741,2]
[398255655,1765473038536,-200.0,0.0001679,2]
[398255656,1765473038547,-877.0,0.0001679,2]
[398255657,1765473038558,-150.0,0.0001679,2]
[398255658,1765473038568,-500.0,0.0001679,2]
[398255659,1765473038578,-250.0,0.00016925,2]
[398255660,1765473038589,-250.0,0.00016925,2]
[398255661,1765473038599,-877.0,0.00016927,2]
[398255662,1765473038609,-150.0,0.00016927,2]
[398255663,1765473038620,-500.0,0.00016927,2]
[398255664,1765473038630,-500.0,0.00016986,2]
[398255665,1765473038641,-500.0,0.00016999,2]
[398255666,1765473038652,-500.0,0.00016999,2]
[398255667,1765473038662,-2000.0,0.00017,2]
[398255668,1765473038672,-250.0,0.00017,2]
[398255669,1765473038682,-500.0,0.00017,2]
[398255670,1765473038692,-150.0,0.00017,2]
[398255671,1765473038703,-260.0,0.00017007,2]
[398255672,1765473038713,-211.0,0.00017007,2]
[398255673,1765473038723,-611.0,0.00017007,2]
[398255674,1765473038733,-3449.0,0.00017007,2]
[398255675,1765473038743,-1606.0,0.00017007,2]
[398255676,1765473038754,-1324.0,0.00017007,2]
[398255677,1765473038763,-420.0,0.00017062,2]
[398255678,1765473038773,-877.0,0.00017064,2]
[398255679,1765473038785,-150.0,0.00017064,2]
[398255680,1765473038794,-500.0,0.00017064,2]
[398255681,1765473038804,-150.0,0.000171,2]
[398255682,1765473038814,-150.0,0.000171,2]
[398255683,1765473038824,-150.0,0.000171,2]
[398255684,1765473038835,-703.56,0.00017123,2]
[398255685,1765473038845,-703.56,0.00017123,2]
[398255686,1765473038855,-703.56,0.00017123,2]
[398255687,1765473038865,-703.56,0.00017123,2]
[398255688,1765473038875,-703.56,0.00017123,2]
[398255689,1765473038885,-500.0,0.00017137,2]
[398255690,1765473038896,-200.0,0.00017137,2]
[398255691,1765473038906,-1680.0,0.00017146,2]
[398255692,1765473038917,-877.0,0.00017201,2]
[398255693,1765473038927,-250.0,0.00017201,2]
[398255694,1765473038937,-500.0,0.00017201,2]
[398255695,1765473038947,-166.66,0.00017202,2]
[398255696,1765473038958,-500.0,0.0001726,2]
[398255697,1765473038971,-440.0,0.00017274,2]
[398255698,1765473038982,-877.0,0.00017338,2]
[398255699,1765473038992,-500.0,0.00017338,2]
[398255700,1765473039003,-877.0,0.00017475,2]
[398255701,1765473039014,-500.0,0.00017475,2]
[398255702,1765473039024,-500.0,0.00017534,2]
[398255703,1765473039036,-557.70251768,0.00017562,2]
[398255704,1765473039047,-877.0,0.00017612,2]
[398255705,1765473039057,-500.0,0.00017612,2]
[398255706,1765473039068,-877.0,0.00017749,2]
[398255707,1765473039080,-500.0,0.00017749,2]
[398255708,1765473039090,-166.66,0.00017752,2]
[398255709,1765473039100,-150.0,0.00017808,2]
[398255710,1765473039110,-500.0,0.00017808,2]
[398255711,1765473039121,-200.0,0.00017816,2]
[398255712,1765473039131,-1034.3703605,0.00017838,2]
[398255713,1765473039141,-22805.28257107,0.0001785,2]
[398255714,1765473039154,-35668.22654283,0.0001785,2]
[398255715,1765473039164,-877.0,0.00017886,2]
[398255716,1765473039173,-500.0,0.00017886,2]
[398255717,1765473039183,-1000.0,0.00017899,3]
[398255718,1765473039193,-10000.0,0.000179,2]
[398255719,1765473039203,-24000.0,0.000179,4]
[398255720,1765473039213,-155.37202418,0.000179,2]
[398255721,1765473039222,-431.13835464,0.000179,2]
[398255722,1765473039232,-719.2052396,0.000179,2]
[398255723,1765473039242,-472.4724461,0.000179,2]
[398255724,1765473039252,-258.3457815,0.000179,2]
[398255725,1765473039262,-329.46456676,0.000179,2]
[398255726,1765473039272,-500.0,0.00017919,2]
[398255727,1765473039282,-1000.0,0.00017919,2]
[398255728,1765473039291,-2311.91024767,0.0001792,2]
[398255729,1765473039300,-150.0,0.00017945,2]
[398255730,1765473039310,-157.0,0.00017973,2]
[398255731,1765473039319,-157.0,0.00017973,2]
[398255732,1765473039329,-157.0,0.00017973,2]
[398255733,1765473039339,-157.0,0.00017973,2]
[398255734,1765473039348,-163.27684843,0.00017973,2]
[398255735,1765473039358,-152.0,0.00017973,2]
[398255736,1765473039369,-152.0,0.00017973,2]
[398255737,1765473039379,-152.0,0.00017973,2]
[398255738,1765473039388,-152.0,0.00017973,2]
[398255739,1765473039398,-152.0,0.00017973,2]
[398255740,1765473039407,-151.0,0.00017973,2]
[398255741,1765473039418,-152.0,0.00017973,2]
[398255742,1765473039427,-152.16701834,0.00017973,2]
[398255743,1765473039438,-152.0,0.00017973,2]
[398255744,1765473039448,-152.0,0.00017973,2]
[398255745,1765473039457,-152.0,0.00017973,2]
[398255746,1765473039468,-152.0,0.00017973,2]
[398255747,1765473039478,-152.0,0.00017973,2]
[398255748,1765473039488,-152.0,0.00017973,2]
[398255749,1765473039497,-152.0,0.00017973,2]
[398255750,1765473039507,-152.0,0.00017973,2]
[398255751,1765473039517,-152.0,0.00017973,2]
[398255752,1765473039526,-152.0,0.00017973,2]
[398255753,1765473039537,-152.0,0.00017973,2]
[398255754,1765473039546,-152.0,0.00017973,2]
[398255755,1765473039556,-152.0,0.00017973,2]
[398255756,1765473039566,-152.0,0.00017973,2]
[398255757,1765473039575,-152.0,0.00017973,2]
[398255758,1765473039584,-152.0,0.00017973,2]
[398255759,1765473039595,-153.0,0.00017973,2]
[398255760,1765473039604,-153.0,0.00017973,2]
[398255761,1765473039614,-153.0,0.00017973,2]